fUST/lending_fUST_20240816
["ID","MTS","AMOUNT","RATE_DAILY","PERIOD"]
[335007870,1723738239943,-1942.80555174,0.0001212,2]
[335007871,1723738239956,-3990.98917827,0.0001212,2]
[335007872,1723738239965,-361.78686494,0.00012934,2]
[335007873,1723738239976,-366.70970802,0.00013599,2]
[335007874,1723738239986,-224.16153548,0.00013688,2]
[335007875,1723738239996,-189.9631639,0.00013688,2]
[335007876,1723738240006,-419.453269,0.00014247,2]
[335007877,1723738240016,-419.453269,0.00020707,2]
[335007878,1723738240026,-5242.02170044,0.0002328,2]
[335007879,1723738240036,-277.52010074,0.0002343,2]
[335007880,1723738240046,-3260.88209103,0.0002459,2]
[335007881,1723738240057,-10337.19273734,0.000246,2]
[335007882,1723738240067,-380.0,0.00024658,2]
[335007883,1723738240078,-2606.26346968,0.00024658,2]
[335007884,1723738240088,-154.8064888,0.00024688,2]
[335007885,1723738240099,-782.12449386,0.00024688,2]
[335007886,1723738240109,-1110.29005483,0.00024728,2]
[335007887,1723738240119,-160.73794928,0.00024756,2]
[335007888,1723738240128,-882.43417531,0.00024803,2]
[335007889,1723738240138,-882.43417531,0.00024803,2]
[335007890,1723738240148,-23226.33098157,0.00025,30]
[335007891,1723738240158,-419.453269,0.00027167,2]
[335007892,1723738240168,-3260.88209103,0.00028749,2]
[335007893,1723738240177,-178.49721722,0.0003,5]
[335007894,1723738240186,-150.0,0.00030335,14]
[335007895,1723738240195,-150.0,0.00030335,14]
[335007896,1723738240205,-200.0,0.00030335,14]
[335007897,1723738240215,-500.0,0.00032906,7]
[335007898,1723738240224,-298.21449572,0.00032906,7]
[335007899,1723738240234,-3260.88209103,0.00032907,2]
[335007900,1723738240244,-419.453269,0.00033626,2]
[335007901,1723738240255,-1125.483299,0.00035616,120]
[335007902,1723738240265,-3260.88209103,0.00037066,2]
[335007903,1723738240274,-986.90158753,0.00038356,59]
[335007904,1723738240284,-203.8851086,0.0003988,2]
[335007905,1723738240294,-960.7288968,0.00039897,2]
[335007906,1723738240305,-14110.90995147,0.000399,7]
[335007907,1723738240315,-285.11080816,0.000399,3]
[335007908,1723738240327,-156.77381,0.000399,14]
[335007909,1723738240338,-500.0,0.000399,5]
[335007910,1723738240348,-237.280659,0.0003997,14]
[335007911,1723738240359,-19779.36,0.0003998,3]
[335007912,1723738240369,-9994.33985532,0.0003998,5]
[335007913,1723738240380,-151.0,0.0003999,14]
[335007914,1723738240390,-151.0,0.0003999,14]
[335007915,1723738240401,-9994.33985532,0.0003999,5]
[335007916,1723738240411,-183.8949008,0.0004,4]
[335007917,1723738240421,-23000.0,0.0004,120]
[335007918,1723738240432,-150.0,0.0004,30]
[335007919,1723738240443,-15668.49073717,0.0004,30]
[335007930,1723738242901,-637.86294984,0.00013599,2]
[335007931,1723738242911,-317.90606073,0.00024662,2]
[335007932,1723738242921,-4439.53465501,0.0004,30]
[335007933,1723738242931,-5998.87568544,0.0004,120]
[335007934,1723738242942,-275.94919301,0.0004,48]
[335007997,1723738245944,-277.52010074,0.0002343,2]
[335007998,1723738245954,-133.59169845,0.00024577,2]
[335008010,1723739362311,-1161.10795859,0.00011,2]
[335008011,1723739362337,-188.49095664,0.00011409,2]
[335008012,1723739362359,-58.86270519,0.00012629,2]
[335008073,1723739431913,-2439.55506371,0.00012551,2]
[335008137,1723739441767,-3494.2396663,0.00012551,2]
[335008138,1723739441777,-1602.7,0.00012629,2]
[335008139,1723739441787,-335.562615,0.00014247,2]
[335008140,1723739441797,-188.49095664,0.00015308,2]
[335008141,1723739441808,-162.972932,0.0002054,2]
[335008142,1723739441818,-335.562615,0.00020707,2]
[335008143,1723739441828,-10337.19273734,0.0002426,2]
[335008144,1723739441839,-882.43417531,0.00024442,2]
[335008145,1723739441850,-10502.54869245,0.00024577,2]
[335008146,1723739441861,-1630.44104555,0.00024628,2]
[335008147,1723739441870,-2606.26346968,0.00024662,2]
[335008148,1723739441880,-160.73794928,0.00024688,2]
[335008149,1723739441890,-782.12449386,0.00024688,2]
[335008150,1723739441899,-277.52010074,0.0002469,2]
[335008151,1723739441910,-1110.29005483,0.0002469,2]
[335008152,1723739441919,-3450.40263623,0.00024756,2]
[335008153,1723739441929,-3511.43075377,0.00025,30]
[335008154,1723739441939,-335.562615,0.00027167,2]
[335008155,1723739441948,-162.972932,0.00028166,2]
[335008156,1723739441958,-1630.44104551,0.00028781,2]
[335008157,1723739441967,-178.49721722,0.0003,5]
[335008158,1723739441977,-150.0,0.00030354,14]
[335008159,1723739442080,-150.0,0.00030354,14]
[335008160,1723739442091,-200.0,0.00030354,14]
[335008161,1723739442100,-1630.44104551,0.00032934,2]
[335008162,1723739442111,-335.562615,0.00033626,2]
[335008163,1723739442120,-844.112474,0.00035616,120]
[335008164,1723739442129,-162.972932,0.00035791,2]
[335008165,1723739442140,-1630.44104551,0.00037087,2]
[335008166,1723739442150,-500.0,0.00037979,15]
[335008167,1723739442159,-335.41933437,0.00037979,15]
[335008168,1723739442169,-13591.2079989,0.00037989,4]
[335008169,1723739442179,-10149.12,0.0003799,3]
[335008170,1723739442188,-157.595077,0.0003799,7]
[335008171,1723739442199,-27182.4159978,0.0003799,4]
[335008172,1723739442209,-500.0,0.00037999,15]
[335008173,1723739442218,-500.0,0.00037999,15]
[335008174,1723739442228,-500.0,0.00037999,15]
[335008175,1723739442238,-500.0,0.00037999,15]
[335008176,1723739442248,-500.0,0.00037999,15]
[335008177,1723739442258,-500.0,0.00037999,15]
[335008178,1723739442267,-226.46344062,0.00037999,15]
[335008179,1723739442276,-500.0,0.00037999,15]
[335008180,1723739442286,-49870.21437079,0.00038,120]
[335008181,1723739442326,-1160.31775799,0.00038,120]
[335008182,1723739442338,-1802.2976628,0.00038,120]
[335008186,1723739443563,-1267.08015773,0.00038,120]
[335008188,1723739443576,-6025.99999999,0.00038,120]
[335008190,1723739443589,-10022.52717792,0.00038,120]
[335008192,1723739443600,-916.80756634,0.00038,120]
[335008225,1723739446130,-1301.57506432,0.00038,120]
[335008226,1723739446145,-687.7,0.00038,120]
[335008227,1723739446157,-915.0,0.00038,120]
[335008340,1723740632023,-473.83415027,0.00012629,2]
[335008368,1723740638315,-2617.67290406,0.00012629,2]
[335008369,1723740638324,-850.51877308,0.00012689,2]
[335008370,1723740638334,-188.49095664,0.00012886,2]
[335008371,1723740638344,-174.75672236,0.00012971,2]
[335008372,1723740638354,-268.450092,0.00014247,2]
[335008373,1723740638364,-782.12449386,0.00015,2]
[335008374,1723740638373,-277.52010074,0.000165,2]
[335008375,1723740638383,-10337.19273734,0.00017898,2]
[335008376,1723740638394,-2606.26346968,0.000203,2]
[335008377,1723740638408,-268.450092,0.00020707,2]
[335008378,1723740638417,-256.69789751,0.00022,2]
[335008380,1723740638427,-865.74140387,0.0002217,2]
[335008382,1723740638436,-162.972932,0.00023316,2]
[335008384,1723740638446,-579.2790319,0.00023377,2]
[335008386,1723740638456,-1110.29005483,0.00024756,2]
[335008387,1723740638466,-247.45631739,0.00024859,2]
[335008388,1723740638479,-6196.24830913,0.00025,30]
[335008389,1723740638490,-268.450092,0.00027167,2]
[335008390,1723740638499,-218.769189,0.00027631,2]
[335008391,1723740638508,-178.49721722,0.0003,5]
[335008392,1723740638519,-150.0,0.0003037,14]
[335008393,1723740638530,-150.0,0.0003037,14]
[335008394,1723740638545,-200.0,0.0003037,14]
[335008395,1723740638561,-162.972932,0.00032466,2]
[335008396,1723740638574,-268.450092,0.00033626,2]
[335008397,1723740638584,-633.084355,0.00035616,120]
[335008398,1723740638594,-500.0,0.00037999,15]
[335008399,1723740638603,-500.0,0.00037999,15]
[335008400,1723740638613,-500.0,0.00037999,15]
[335008401,1723740638623,-80.1828676,0.00037999,15]
[335008402,1723740638635,-419.8171324,0.00037999,15]
[335008403,1723740638645,-500.0,0.00037999,15]
[335008404,1723740638655,-500.0,0.00037999,15]
[335008405,1723740638665,-500.0,0.00037999,15]
[335008406,1723740638675,-500.0,0.00037999,15]
[335008407,1723740638684,-500.0,0.00037999,15]
[335008408,1723740638694,-176.25330287,0.00037999,15]
[335008409,1723740638703,-500.0,0.00037999,15]
[335008410,1723740638713,-500.0,0.00037999,15]
[335008411,1723740638722,-642.68923766,0.00037999,15]
[335008412,1723740638731,-500.0,0.00037999,15]
[335008413,1723740638740,-500.0,0.00037999,15]
[335008414,1723740638750,-438.67277865,0.00037999,15]
[335008415,1723740638760,-500.0,0.00037999,15]
[335008416,1723740638770,-592.97033611,0.00037999,15]
[335008417,1723740638779,-500.0,0.00037999,15]
[335008418,1723740638789,-500.0,0.00037999,15]
[335008419,1723740638799,-2847.5877303,0.00038,120]
[335008420,1723740638811,-17729.28424251,0.00038,120]
[335008466,1723740640330,-661.11018533,0.00038,120]
[335008467,1723740640391,-13375.86471722,0.00038,120]
[335008468,1723740640405,-285.11080816,0.00038,3]
[335008470,1723740640414,-14110.90995147,0.00038,7]
[335008472,1723740640424,-504.39479182,0.000398,5]
[335008474,1723740640433,-960.72889679,0.00039897,2]
[335008476,1723740640444,-3735.20080699,0.0004,48]
[335008478,1723740640453,-154.79103211,0.0004,4]
[335008479,1723740640463,-200.0,0.0004,120]
[335008481,1723740640472,-500.0,0.0004,5]
[335008482,1723740640482,-268.450092,0.00040086,2]
[335008484,1723740640491,-150.0,0.0004017,2]
[335008486,1723740640501,-504.39479182,0.00040198,5]
[335008488,1723740640510,-504.39479182,0.00040596,5]
[335008489,1723740640519,-504.19331598,0.00040994,5]
[335008490,1723740640528,-500.0,0.00041095,30]
[335008491,1723740640539,-512.510339,0.00041095,30]
[335008492,1723740640548,-500.0,0.00041095,30]
[335008494,1723740640557,-500.0,0.00041095,30]
[335008496,1723740640566,-150.0,0.0004117,60]
[335008498,1723740640576,-633.084355,0.00041553,120]
[335008499,1723740640585,-8559.77,0.00041597,3]
[335008500,1723740640595,-10271.72,0.00041607,3]
[335008501,1723740640604,-162.972932,0.00041617,2]
[335008502,1723740640613,-150.0,0.0004217,60]
[335008503,1723740640623,-12326.07,0.0004298,3]
[335008504,1723740640632,-14791.28,0.0004299,3]
[335008505,1723740640641,-1969.56389674,0.00043,5]
[335008506,1723740640650,-150.0,0.0004317,60]
[335008507,1723740640660,-2000.0,0.00043835,60]
[335008508,1723740640669,-154.79103211,0.00044,120]
[335008509,1723740640678,-469.407739,0.00044,30]
[335008510,1723740640688,-150.0,0.0004417,60]
[335008511,1723740640697,-14946.85107629,0.000449,5]
[335008512,1723740640706,-151.0,0.000449,14]
[335008513,1723740640716,-151.0,0.000449,14]
[335008514,1723740640725,-253.529578,0.0004499,14]
[335008515,1723740640734,-151.0,0.0004499,14]
[335008516,1723740640744,-500.0,0.00044999,30]
[335008517,1723740640754,-500.0,0.00044999,120]
[335008518,1723740640763,-500.0,0.00044999,120]
[335008519,1723740640773,-500.0,0.00044999,120]
[335008520,1723740640784,-500.0,0.00044999,120]
[335008521,1723740640793,-500.0,0.00044999,120]
[335008522,1723740640803,-500.0,0.00044999,120]
[335008523,1723740640812,-346.3725362,0.00044999,120]
[335008524,1723740640822,-987.67386071,0.00045,11]
[335008525,1723740640831,-176.78009476,0.00045,120]
[335008526,1723740640840,-16211.02665558,0.00045,60]
[335008533,1723740643152,-28.74422138,0.00045,60]
[335008536,1723740643453,-11186.51232755,0.00045,60]
[335008540,1723740643465,-1748.74498305,0.00045,60]
[335008635,1723740646172,-658.0,0.00045,60]
[335008643,1723740652596,326.62663769,0.00027,120]
[335008644,1723740682841,273.37336231,0.00027,120]
[335008645,1723740854327,3307.31444455,0.00015,4]
[335008652,1723741374817,3091.50705433,0.00010081,2]
[335008653,1723741433169,3789.92883134,0.00010081,2]
[335008654,1723741451049,2497.17758355,9e-05,2]
[335008763,1723741833248,-188.49095664,0.00012971,2]
[335008765,1723741833259,-211.01732116,0.00012971,2]
[335008768,1723741833270,-240.2347681,0.00013599,2]
[335008770,1723741833282,-2851.27228623,0.00013599,2]
[335008772,1723741833292,-201.337569,0.00014247,2]
[335008774,1723741833302,-307.36596629,0.00014519,2]
[335008776,1723741833312,-403.88609201,0.00017958,2]
[335008778,1723741833322,-1435.60483248,0.000203,2]
[335008780,1723741833334,-910.89858353,0.000203,2]
[335008782,1723741833345,-201.337569,0.00020707,2]
[335008784,1723741833355,-80.73110504,0.00020793,2]
[335008827,1723741840662,-188.49095664,0.00012934,2]
[335008829,1723741840672,-582.44916596,0.00020793,2]
[335008831,1723741840682,-3000.0,0.00021326,2]
[335008833,1723741840691,-1954.81342932,0.00024571,2]
[335008848,1723741840830,-1263.96000776,0.00024571,2]
[335008851,1723741840857,-2692.20000003,0.00024571,2]
[335008854,1723741840871,-2413.3270512,0.00024571,2]
[335008856,1723741840883,-2012.89224903,0.00024571,2]
[335008858,1723741840893,-1110.29005483,0.00024658,2]
[335008860,1723741840902,-249.87734536,0.00024688,2]
[335008862,1723741840912,-2691.89690811,0.00027,2]
[335008864,1723741840924,-3559.79772368,0.00027,2]
[335008883,1723741841093,155.90530926,9.9e-05,2]
[335009103,1723741843371,-564.00000001,0.00027,2]
[335009110,1723741843448,-3686.85406065,0.00027,2]
[335009111,1723741843458,-201.337569,0.00027167,2]
[335009113,1723741843467,-465.03045439,0.00028066,2]
[335009116,1723741843479,-444.67791596,0.000295,2]
[335009395,1723741846465,-968.32208404,0.000295,2]
[335009397,1723741846474,-178.49721722,0.0003,5]
[335009399,1723741846483,-150.0,0.00030407,14]
[335009401,1723741846492,-150.0,0.00030407,14]
[335009403,1723741846502,-200.0,0.00030407,14]
[335009405,1723741846511,-150.0,0.00030989,2]
[335009407,1723741846522,-508.0,0.00030989,2]
[335009409,1723741846531,-663.180271,0.00031189,2]
[335009411,1723741846541,-285.11080816,0.00032727,3]
[335009413,1723741846550,-201.337569,0.00033626,2]
[335009416,1723741846559,-316.542177,0.00035616,120]
[335009419,1723741846569,-154.79103211,0.0004,4]
[335009421,1723741846579,-150.112234,0.0004,5]
[335009422,1723741846588,-201.337569,0.00040086,2]
[335009424,1723741846598,-316.542177,0.00041553,120]
[335009426,1723741846608,-150.112233,0.000422,9]
[335009428,1723741846618,-500.0,0.0004385,8]
[335009430,1723741846627,-150.112233,0.000444,5]
[335009432,1723741846639,-288.10781512,0.00044899,120]
[335009434,1723741846650,-215.40808652,0.00044899,31]
[335009436,1723741846660,-500.0,0.00044899,7]
[335009438,1723741846670,-408.47258921,0.00044899,120]
[335009440,1723741846679,-182.52102641,0.00044899,120]
[335009442,1723741846688,-500.0,0.00044899,7]
[335009444,1723741846698,-500.0,0.00044899,7]
[335009446,1723741846707,-500.0,0.00044899,7]
[335009448,1723741846716,-500.0,0.00044899,7]
[335009450,1723741846726,-500.0,0.00044899,7]
[335009452,1723741846735,-500.0,0.00044899,7]
[335009454,1723741846744,-500.0,0.00044899,7]
[335009456,1723741846753,-500.0,0.00044899,7]
[335009458,1723741846762,-500.0,0.00044899,7]
[335009460,1723741846773,-500.0,0.00044899,7]
[335009462,1723741846787,-500.0,0.00044899,7]
[335009464,1723741846796,-500.0,0.00044899,7]
[335009466,1723741846805,-500.0,0.00044899,7]
[335009468,1723741846814,-500.0,0.00044899,7]
[335009470,1723741846824,-500.0,0.00044899,7]
[335009472,1723741846833,-547.96955883,0.00044899,7]
[335009474,1723741846842,-500.0,0.00044899,7]
[335009476,1723741846851,-500.0,0.00044899,7]
[335009478,1723741846862,-500.0,0.00044899,7]
[335009480,1723741846873,-500.0,0.00044899,7]
[335009482,1723741846882,-500.0,0.00044899,7]
[335009484,1723741846891,-500.0,0.00044899,7]
[335009486,1723741846901,-500.0,0.00044899,7]
[335009488,1723741846910,-500.0,0.00044899,7]
[335009490,1723741846920,-14631.73877102,0.000449,2]
[335009492,1723741846930,-164.88315978,0.00044989,120]
[335009494,1723741846939,-316.18923653,0.00044989,31]
[335009496,1723741846950,-500.0,0.00044989,120]
[335009498,1723741846959,-500.0,0.00044989,120]
[335009500,1723741846968,-500.0,0.00044989,120]
[335009502,1723741846979,-500.0,0.00044989,120]
[335009504,1723741846989,-500.0,0.00044989,120]
[335009506,1723741846998,-360.31741147,0.00044989,120]
[335009508,1723741847007,-500.0,0.00044989,120]
[335009510,1723741847019,-500.0,0.00044989,120]
[335009512,1723741847034,-500.0,0.00044989,120]
[335009514,1723741847044,-500.0,0.00044989,120]
[335009516,1723741847053,-500.0,0.00044989,120]
[335009518,1723741847062,-500.0,0.00044989,120]
[335009520,1723741847072,-500.0,0.00044989,120]
[335009522,1723741847082,-300.0,0.00044989,120]
[335009524,1723741847091,-155455.879758,0.0004499,5]
[335009526,1723741847100,-4484.39179799,0.00045,11]
[335009528,1723741847110,-70166.97181244,0.00045,60]
[335009530,1723741847119,-5000.0,0.00045,50]
[335009532,1723741847129,-5998.87568542,0.00045,120]
[335009534,1723741847139,-60676.389,0.00045,30]
[335009536,1723741847149,-31177.01766753,0.00045,2]
[335009538,1723741847162,-1507.10844194,0.00045,2]
[335009541,1723741847181,-17067.83905653,0.00045,2]
[335009544,1723741847192,-341.06,0.00045,2]
[335009546,1723741847204,-1079.32997976,0.00045,2]
[335013200,1723741885892,273.37336231,0.00027,120]
[335016979,1723742004623,269.54909522,0.00014519,7]
[335017013,1723743032544,-1224.62480113,0.00012551,2]
[335017014,1723743032556,-823.0,0.00012551,2]
[335017015,1723743032568,-363.3921358,0.00012551,2]
[335017029,1723743038785,-680.4901174,0.00012551,2]
[335017031,1723743038795,-1489.40472287,0.00012551,2]
[335017034,1723743038855,-1602.10233146,0.00012551,2]
[335017035,1723743038864,-201.40766854,0.00012898,2]
[335017066,1723743040714,-108.09712456,0.00012898,2]
[335017067,1723743040724,-188.49095664,0.00012934,2]
[335017068,1723743040733,-158.950712,0.00014247,2]
[335017069,1723743040743,-500.0,0.0001726,2]
[335017070,1723743040753,-500.0,0.00017534,2]
[335017071,1723743040762,-536.94000087,0.00017808,2]
[335017072,1723743040771,-280.27257814,0.00018,2]
[335017073,1723743040781,-158.950712,0.00021065,2]
[335017074,1723743040790,-439.35790714,0.0002341,2]
[335017075,1723743040802,-2560.64209286,0.0002341,2]
[335017076,1723743040812,-3814.8809121,0.00023802,2]
[335017077,1723743040821,-383.49276763,0.00024662,2]
[335017078,1723743040830,-1110.29005483,0.00024662,2]
[335017079,1723743040839,-162.972932,0.00025478,2]
[335017080,1723743040849,-300.0,0.00026017,2]
[335017081,1723743040859,-300.0,0.00026017,2]
[335017082,1723743040868,-331.590136,0.00026019,2]
[335017083,1723743040877,-358.70676131,0.000269,2]
[335017084,1723743040886,-1251.56197681,0.00027,2]
[335017085,1723743040898,-655.8699954,0.00027,2]
[335017086,1723743040912,-1322.80644583,0.00027,2]
[335017142,1723743046891,-7272.31027441,0.00027,2]
[335017143,1723743046901,-158.950712,0.00027884,2]
[335017144,1723743046912,-465.00159194,0.00028066,2]
[335017145,1723743046922,-178.49721722,0.0003,5]
[335017146,1723743046932,-150.00050532,0.0003,7]
[335017147,1723743046942,-150.0,0.00030471,14]
[335017148,1723743046952,-150.0,0.00030471,14]
[335017149,1723743046962,-200.0,0.00030471,14]
[335017150,1723743046972,-5354.86587435,0.00030471,30]
[335017151,1723743046982,-285.11080816,0.00032727,3]
[335017152,1723743046992,-150.0,0.00032992,2]
[335017153,1723743047002,-508.0,0.00032992,2]
[335017154,1723743047012,-1413.0,0.00032992,2]
[335017155,1723743047021,-158.950712,0.00034703,2]
[335017156,1723743047032,-158.271088,0.00035616,120]
[335017157,1723743047041,-162.972932,0.00036917,2]
[335017158,1723743047051,-331.590136,0.00039028,2]
[335017159,1723743047060,-154.79103211,0.0004,4]
[335017160,1723743047070,-1816.18267068,0.00041,4]
[335017161,1723743047080,-158.950712,0.00041522,2]
[335017162,1723743047090,-158.271088,0.00041553,120]
[335017163,1723743047099,-500.0,0.00044899,7]
[335017164,1723743047109,-500.0,0.00044899,7]
[335017165,1723743047118,-394.21883987,0.00044899,7]
[335017166,1723743047128,-31911.67680763,0.000449,24]
[335017167,1723743047143,-7133.14,0.0004498,3]
[335017168,1723743047153,-5944.28,0.0004498,3]
[335017169,1723743047163,-4953.57,0.0004498,3]
[335017170,1723743047172,-69984.4342104,0.0004499,5]
[335017171,1723743047183,-203.50934828,0.00044999,2]
[335017172,1723743047192,-1197.75217216,0.00044999,2]
[335017173,1723743047202,-500.0,0.00044999,120]
[335017174,1723743047211,-221.33246557,0.00044999,31]
[335017175,1723743047224,-500.0,0.00044999,120]
[335017176,1723743047234,-500.0,0.00044999,120]
[335017177,1723743047243,-500.0,0.00044999,120]
[335017178,1723743047252,-500.0,0.00044999,120]
[335017179,1723743047262,-336.04652369,0.00044999,120]
[335017180,1723743047272,-500.0,0.00044999,120]
[335017181,1723743047281,-500.0,0.00044999,120]
[335017182,1723743047290,-500.0,0.00044999,120]
[335017183,1723743047299,-500.0,0.00044999,120]
[335017184,1723743047309,-500.0,0.00044999,120]
[335017185,1723743047405,-500.0,0.00044999,120]
[335017186,1723743047419,-500.0,0.00044999,120]
[335017187,1723743047428,-500.0,0.00044999,120]
[335017188,1723743047438,-500.0,0.00044999,120]
[335017189,1723743047447,-200.0,0.00044999,120]
[335017190,1723743047457,-500.0,0.00044999,120]
[335017191,1723743047466,-1000.0,0.00044999,120]
[335017192,1723743047475,-118126.33954052,0.00045,2]
[335017193,1723743047485,-150.112234,0.00045,6]
[335017194,1723743047495,-500.0,0.00045,9]
[335017195,1723743047505,-150.112233,0.000458,13]
[335017196,1723743047514,-250.0,0.00046,30]
[335017197,1723743047523,-6094.87490662,0.00046465,5]
[335017198,1723743047533,-698.7272152,0.00046475,2]
[335017199,1723743047542,-2242.19589899,0.0004649,11]
[335017200,1723743047552,-23328.1447368,0.0004649,5]
[335017201,1723743047561,-30000.0,0.000465,24]
[335017202,1723743047570,-151.0,0.000465,14]
[335017203,1723743047579,-151.0,0.000465,14]
[335017204,1723743047589,-151.0,0.000465,14]
[335017205,1723743047598,-151.0,0.000465,14]
[335017206,1723743047607,-151.0,0.000465,14]
[335017207,1723743047617,-151.0,0.000465,14]
[335017208,1723743047626,-151.0,0.000465,14]
[335017209,1723743047636,-342.595012,0.000465,14]
[335017210,1723743047646,-342.595012,0.000465,14]
[335017211,1723743047656,-151.0,0.000465,2]
[335017212,1723743047668,-151.0,0.000465,14]
[335017213,1723743047678,-151.0,0.000465,14]
[335017214,1723743047687,-151.0,0.000465,14]
[335017215,1723743047696,-151.0,0.000465,14]
[335017216,1723743047706,-151.0,0.000465,14]
[335017217,1723743047715,-151.0,0.000465,14]
[335017218,1723743047724,-151.0,0.000465,14]
[335017219,1723743047733,-151.0,0.000465,14]
[335017220,1723743047742,-151.0,0.000465,14]
[335017221,1723743047752,-151.0,0.000465,14]
[335017222,1723743047762,-257.299719,0.000465,14]
[335017223,1723743047771,-257.299719,0.000465,14]
[335017224,1723743047780,-349.099953,0.000465,14]
[335017225,1723743047789,-349.099953,0.000465,14]
[335017226,1723743047798,-151.0,0.000465,14]
[335017227,1723743047808,-467.091311,0.000465,14]
[335017228,1723743047817,-467.091311,0.000465,14]
[335017229,1723743047826,-206.51198,0.000465,14]
[335017230,1723743047835,-206.51198,0.000465,14]
[335017231,1723743047845,-151.0,0.000465,14]
[335017232,1723743047855,-151.0,0.000465,14]
[335017233,1723743047864,-151.0,0.000465,14]
[335017234,1723743047873,-151.0,0.000465,14]
[335017235,1723743047883,-151.0,0.000465,14]
[335017236,1723743047892,-151.0,0.000465,14]
[335017237,1723743047901,-151.0,0.000465,14]
[335017238,1723743047914,-151.0,0.000465,14]
[335017239,1723743047923,-151.0,0.000465,14]
[335017240,1723743047933,-449.985369,0.000465,14]
[335017241,1723743047943,-449.985369,0.000465,14]
[335017242,1723743047952,-151.0,0.000465,14]
[335017243,1723743047962,-270.575797,0.000465,14]
[335017244,1723743047972,-151.0,0.000465,14]
[335017245,1723743047981,-270.575797,0.000465,14]
[335017246,1723743047990,-151.0,0.000465,14]
[335017247,1723743047999,-151.0,0.000465,14]
[335017248,1723743048009,-153.327975,0.00046565,14]
[335017249,1723743048018,-152.50283,0.00046565,14]
[335017250,1723743048027,-278.858398,0.00046565,14]
[335017251,1723743048037,-342.595012,0.00046565,14]
[335017252,1723743048046,-342.595012,0.00046565,14]
[335017253,1723743048056,-151.0,0.00046565,2]
[335017254,1723743048066,-277.934111,0.00046565,14]
[335017255,1723743048075,-151.0,0.00046565,14]
[335017256,1723743048084,-151.0,0.00046565,14]
[335017257,1723743048093,-151.0,0.00046565,14]
[335017258,1723743048103,-151.0,0.00046565,14]
[335017259,1723743048112,-151.0,0.00046565,14]
[335017260,1723743048121,-151.0,0.00046565,14]
[335017261,1723743048130,-151.0,0.00046565,14]
[335017262,1723743048139,-257.299719,0.00046565,14]
[335017263,1723743048153,-257.299719,0.00046565,14]
[335017264,1723743048164,-349.099953,0.00046565,14]
[335017265,1723743048174,-349.099953,0.00046565,14]
[335017266,1723743048183,-151.0,0.00046565,14]
[335017267,1723743048193,-467.091311,0.00046565,14]
[335017268,1723743048203,-467.091311,0.00046565,14]
[335017269,1723743048212,-206.51198,0.00046565,14]
[335017270,1723743048223,-206.51198,0.00046565,14]
[335017271,1723743048233,-151.0,0.00046565,14]
[335017272,1723743048242,-151.0,0.00046565,14]
[335017273,1723743048251,-193.269196,0.00046565,14]
[335017274,1723743048261,-151.0,0.00046565,14]
[335017275,1723743048270,-151.0,0.00046565,14]
[335017276,1723743048280,-151.0,0.00046565,14]
[335017277,1723743048289,-151.0,0.00046565,14]
[335017278,1723743048299,-151.0,0.00046565,14]
[335017279,1723743048308,-151.0,0.00046565,14]
[335017280,1723743048317,-449.985369,0.00046565,14]
[335017281,1723743048328,-449.985369,0.00046565,14]
[335017282,1723743048337,-151.0,0.00046565,14]
[335017283,1723743048348,-270.575797,0.00046565,14]
[335017284,1723743048358,-151.0,0.00046565,14]